[Event "Titled Tuesday Blitz May 4 2021"]
[White "Simonovic, Miroslav"]
[Black "Daulyte-Cornette, Deimante"]
[WhiteFideId "919152"]
[BlackFideId "12802859"]
[WhiteElo "2043"]
[BlackElo "2285"]
[Result "0-1"]
[Round "06"]
[TimeControl "180+1"]
[Date "2021.05.04"]
[WhiteClock "0:00:03"]
[BlackClock "0:00:05"]

1. d4 {[%clk 0:03:00]}  d6 {[%clk 0:02:59]} 2. Bg5 {[%clk 0:03:00]}  g6 {[%clk 0:02:53]} 3. h4 {[%clk 0:02:59]}  Bg7 {[%clk 0:02:46]} 4. h5 {[%clk 0:02:59]}  h6 {[%clk 0:02:45]} 5. Bh4 {[%clk 0:02:59]}  g5 {[%clk 0:02:45]} 6. Bg3 {[%clk 0:02:59]}  f5 {[%clk 0:02:44]} 7. e3 {[%clk 0:02:58]}  Nf6 {[%clk 0:02:35]} 8. Bd3 {[%clk 0:02:55]}  O-O {[%clk 0:02:30]} 9. c4 {[%clk 0:02:54]}  c5 {[%clk 0:02:23]} 10. Ne2 {[%clk 0:02:45]}  Nc6 {[%clk 0:02:18]} 11. f4 {[%clk 0:02:01]}  g4 {[%clk 0:02:08]} 12. d5 {[%clk 0:01:53]}  Nb4 {[%clk 0:02:04]} 13. Nbc3 {[%clk 0:01:53]}  Nxd3+ {[%clk 0:01:57]} 14. Qxd3 {[%clk 0:01:54]}  a6 {[%clk 0:01:30]} 15. Bh4 {[%clk 0:01:51]}  Nxh5 {[%clk 0:01:22]} 16. Bxe7 {[%clk 0:01:49]}  Qxe7 {[%clk 0:01:14]} 17. Rxh5 {[%clk 0:01:49]}  Bd7 {[%clk 0:01:09]} 18. a4 {[%clk 0:01:48]}  Rae8 {[%clk 0:01:09]} 19. Kf2 {[%clk 0:01:47]}  Qf7 {[%clk 0:01:04]} 20. Rah1 {[%clk 0:01:34]}  Re7 {[%clk 0:01:04]} 21. b3 {[%clk 0:01:11]}  Rfe8 {[%clk 0:01:03]} 22. Nd1 {[%clk 0:01:11]}  b5 {[%clk 0:01:00]} 23. axb5 {[%clk 0:01:05]}  axb5 {[%clk 0:01:00]} 24. Rxh6 {[%clk 0:01:03]}  Bxh6 {[%clk 0:00:52]} 25. Rxh6 {[%clk 0:01:04]}  bxc4 {[%clk 0:00:51]} 26. bxc4 {[%clk 0:01:02]}  Ba4 {[%clk 0:00:50]} 27. Nec3 {[%clk 0:00:43]}  Bxd1 {[%clk 0:00:43]} 28. Nxd1 {[%clk 0:00:40]}  g3+ {[%clk 0:00:34]} 29. Kf3 {[%clk 0:00:24]}  Kg7 {[%clk 0:00:25]} 30. Rh3 {[%clk 0:00:21]}  Rh8 {[%clk 0:00:14]} 31. Qc3+ {[%clk 0:00:18]}  Qf6 {[%clk 0:00:13]} 32. Rxg3+ {[%clk 0:00:18]}  Kf7 {[%clk 0:00:13]} 33. Qd3 {[%clk 0:00:14]}  Rh1 {[%clk 0:00:12]} 34. Rg5 {[%clk 0:00:13]}  Ke8 {[%clk 0:00:07]} 35. Rxf5 {[%clk 0:00:11]}  Rxd1 {[%clk 0:00:06]} 36. Rxf6 {[%clk 0:00:05]}  Rxd3 {[%clk 0:00:06]} 37. Rxd6 {[%clk 0:00:05]}  Rdxe3+ {[%clk 0:00:06]} 38. Kg4 {[%clk 0:00:05]}  Rg7+ {[%clk 0:00:06]} 39. Kf5 {[%clk 0:00:05]}  Rxg2 {[%clk 0:00:06]} 40. Rc6 {[%clk 0:00:04]}  Rf2 {[%clk 0:00:06]} 41. Rxc5 {[%clk 0:00:04]}  Ref3 {[%clk 0:00:06]} 42. Ke6 {[%clk 0:00:03]}  Kd8 {[%clk 0:00:05]} 0-1


[Site "https://www.chess.com"]

[Event "Titled Tuesday Blitz May 4 2021"]
[White "Skatchkov, Pavel"]
[Black "Plotnikov, Pavel"]
[WhiteFideId "4121848"]
[BlackFideId "4170342"]
[WhiteElo "2476"]
[BlackElo "2298"]
[Result "1-0"]
[Round "06"]
[TimeControl "180+1"]
[Date "2021.05.04"]
[WhiteClock "0:00:14"]
[BlackClock "0:00:02"]

1. d4 {[%clk 0:02:59]}  Nf6 {[%clk 0:02:57]} 2. c4 {[%clk 0:02:59]}  g6 {[%clk 0:02:47]} 3. Nc3 {[%clk 0:02:59]}  Bg7 {[%clk 0:02:46]} 4. e4 {[%clk 0:02:59]}  d6 {[%clk 0:02:45]} 5. h3 {[%clk 0:02:59]}  O-O {[%clk 0:02:46]} 6. Be3 {[%clk 0:02:59]}  e5 {[%clk 0:02:46]} 7. d5 {[%clk 0:02:56]}  Na6 {[%clk 0:02:45]} 8. g4 {[%clk 0:02:51]}  Nc5 {[%clk 0:02:43]} 9. f3 {[%clk 0:02:51]}  a5 {[%clk 0:02:42]} 10. Qd2 {[%clk 0:02:44]}  h5 {[%clk 0:02:42]} 11. Nge2 {[%clk 0:02:42]}  b6 {[%clk 0:02:37]} 12. Bg5 {[%clk 0:02:41]}  Kh7 {[%clk 0:02:34]} 13. gxh5 {[%clk 0:02:40]}  gxh5 {[%clk 0:02:33]} 14. Ng3 {[%clk 0:02:37]}  Kg6 {[%clk 0:02:28]} 15. h4 {[%clk 0:02:35]}  Rh8 {[%clk 0:02:26]} 16. f4 {[%clk 0:02:24]}  exf4 {[%clk 0:02:13]} 17. Qxf4 {[%clk 0:02:23]}  Qe7 {[%clk 0:02:12]} 18. O-O-O {[%clk 0:02:20]}  Qe5 {[%clk 0:02:09]} 19. Qxe5 {[%clk 0:02:18]}  dxe5 {[%clk 0:02:10]} 20. Be2 {[%clk 0:02:12]}  Ng4 {[%clk 0:02:07]} 21. Nb5 {[%clk 0:02:05]}  Nf2 {[%clk 0:01:52]} 22. Rhg1 {[%clk 0:02:04]}  Nxd1 {[%clk 0:01:50]} 23. Kxd1 {[%clk 0:02:03]}  Bg4 {[%clk 0:01:06]} 24. Nxc7 {[%clk 0:02:03]}  Rac8 {[%clk 0:01:05]} 25. Nb5 {[%clk 0:02:02]}  Bf6 {[%clk 0:00:53]} 26. Bxf6 {[%clk 0:01:53]}  Kxf6 {[%clk 0:00:54]} 27. Rf1+ {[%clk 0:01:47]}  Ke7 {[%clk 0:00:52]} 28. Bxg4 {[%clk 0:01:40]}  hxg4 {[%clk 0:00:53]} 29. h5 {[%clk 0:01:40]}  Rcf8 {[%clk 0:00:45]} 30. d6+ {[%clk 0:01:36]}  Kd7 {[%clk 0:00:45]} 31. Rf6 {[%clk 0:01:34]}  Nb7 {[%clk 0:00:30]} 32. Nf5 {[%clk 0:01:28]}  Nd8 {[%clk 0:00:29]} 33. h6 {[%clk 0:01:22]}  Rfg8 {[%clk 0:00:29]} 34. Ne7 {[%clk 0:01:19]}  Rg5 {[%clk 0:00:28]} 35. Ke2 {[%clk 0:01:15]}  g3 {[%clk 0:00:27]} 36. Kf1 {[%clk 0:01:15]}  Rh7 {[%clk 0:00:26]} 37. Kg2 {[%clk 0:01:13]}  Ne6 {[%clk 0:00:26]} 38. Nd5 {[%clk 0:01:10]}  Kc6 {[%clk 0:00:20]} 39. Ne7+ {[%clk 0:00:52]}  Kd7 {[%clk 0:00:20]} 40. Nd5 {[%clk 0:00:53]}  Rg6 {[%clk 0:00:14]} 41. Nxb6+ {[%clk 0:00:49]}  Kc6 {[%clk 0:00:14]} 42. Rxg6 {[%clk 0:00:33]}  fxg6 {[%clk 0:00:14]} 43. Nd5 {[%clk 0:00:31]}  Rxh6 {[%clk 0:00:13]} 44. Kxg3 {[%clk 0:00:32]}  Nc5 {[%clk 0:00:12]} 45. Nf6 {[%clk 0:00:24]}  g5 {[%clk 0:00:10]} 46. Ng4 {[%clk 0:00:23]}  Nxe4+ {[%clk 0:00:10]} 47. Kf3 {[%clk 0:00:24]}  Rh4 {[%clk 0:00:08]} 48. Nxe5+ {[%clk 0:00:22]}  Kb7 {[%clk 0:00:08]} 49. d7 {[%clk 0:00:22]}  Nd2+ {[%clk 0:00:07]} 50. Ke2 {[%clk 0:00:20]}  Rh2+ {[%clk 0:00:06]} 51. Ke3 {[%clk 0:00:16]}  Nf1+ {[%clk 0:00:06]} 52. Ke4 {[%clk 0:00:16]}  Rd2 {[%clk 0:00:06]} 53. Nd3 {[%clk 0:00:16]}  Re2+ {[%clk 0:00:04]} 54. Kd4 {[%clk 0:00:15]}  Ne3 {[%clk 0:00:02]} 55. d8=Q {[%clk 0:00:14]}  Nf5+ {[%clk 0:00:03]} 56. Kc3 {[%clk 0:00:14]}  Ne7 {[%clk 0:00:02]} 57. Nc5+ {[%clk 0:00:14]}  Kc6 {[%clk 0:00:02]} 58. Qd6# {[%clk 0:00:14]} 1-0


[Site "https://www.chess.com"]

[Event "Titled Tuesday Blitz May 4 2021"]
[White "Srihari L R"]
[Black "Van Foreest, Jorden"]
[WhiteFideId "46617116"]
[BlackFideId "1039784"]
[WhiteElo "2121"]
[BlackElo "2622"]
[Result "0-1"]
[Round "06"]
[TimeControl "180+1"]
[Date "2021.05.04"]
[WhiteClock "0:00:02"]
[BlackClock "0:00:36"]

1. d4 {[%clk 0:03:00]}  g6 {[%clk 0:02:52]} 2. h4 {[%clk 0:02:57]}  Bg7 {[%clk 0:02:53]} 3. h5 {[%clk 0:02:57]}  c5 {[%clk 0:02:54]} 4. c3 {[%clk 0:02:52]}  cxd4 {[%clk 0:02:50]} 5. cxd4 {[%clk 0:02:52]}  Qb6 {[%clk 0:02:51]} 6. Nf3 {[%clk 0:02:50]}  Nc6 {[%clk 0:02:49]} 7. e3 {[%clk 0:02:37]}  d6 {[%clk 0:02:45]} 8. Nc3 {[%clk 0:02:37]}  Bg4 {[%clk 0:02:44]} 9. hxg6 {[%clk 0:02:36]}  hxg6 {[%clk 0:02:45]} 10. Rxh8 {[%clk 0:02:36]}  Bxh8 {[%clk 0:02:46]} 11. Be2 {[%clk 0:02:33]}  Nf6 {[%clk 0:02:42]} 12. Bd2 {[%clk 0:02:27]}  Bg7 {[%clk 0:02:27]} 13. Na4 {[%clk 0:02:26]}  Qd8 {[%clk 0:02:25]} 14. Qb3 {[%clk 0:02:25]}  Rb8 {[%clk 0:02:24]} 15. Ng5 {[%clk 0:02:14]}  Bxe2 {[%clk 0:02:22]} 16. Qxf7+ {[%clk 0:02:13]}  Kd7 {[%clk 0:02:19]} 17. Kxe2 {[%clk 0:02:04]}  Qg8 {[%clk 0:02:19]} 18. Qxg8 {[%clk 0:02:00]}  Rxg8 {[%clk 0:02:20]} 19. Rh1 {[%clk 0:02:00]}  b5 {[%clk 0:02:14]} 20. Nc3 {[%clk 0:01:59]}  a6 {[%clk 0:02:14]} 21. Nce4 {[%clk 0:01:52]}  Nxe4 {[%clk 0:02:05]} 22. Nxe4 {[%clk 0:01:53]}  Nd8 {[%clk 0:02:04]} 23. g4 {[%clk 0:01:47]}  Ne6 {[%clk 0:01:57]} 24. f4 {[%clk 0:01:45]}  Nc7 {[%clk 0:01:46]} 25. Nc3 {[%clk 0:01:22]}  b4 {[%clk 0:01:43]} 26. Ne4 {[%clk 0:01:21]}  a5 {[%clk 0:01:43]} 27. Nf2 {[%clk 0:01:19]}  Nd5 {[%clk 0:01:38]} 28. Kd3 {[%clk 0:01:16]}  Rc8 {[%clk 0:01:37]} 29. Rh7 {[%clk 0:01:09]}  Rg8 {[%clk 0:01:34]} 30. Ne4 {[%clk 0:00:49]}  Ke6 {[%clk 0:01:30]} 31. Ng3 {[%clk 0:00:47]}  Nf6 {[%clk 0:01:29]} 32. f5+ {[%clk 0:00:47]}  Kf7 {[%clk 0:01:28]} 33. fxg6+ {[%clk 0:00:45]}  Kxg6 {[%clk 0:01:29]} 34. Rh1 {[%clk 0:00:45]}  Nxg4 {[%clk 0:01:29]} 35. Rg1 {[%clk 0:00:45]}  Kf7 {[%clk 0:01:29]} 36. Nf5 {[%clk 0:00:40]}  Bf8 {[%clk 0:01:26]} 37. Ke2 {[%clk 0:00:30]}  e6 {[%clk 0:01:23]} 38. Ng3 {[%clk 0:00:26]}  Nf6 {[%clk 0:01:23]} 39. Be1 {[%clk 0:00:22]}  d5 {[%clk 0:01:19]} 40. Rf1 {[%clk 0:00:22]}  Rg5 {[%clk 0:01:16]} 41. Nh1 {[%clk 0:00:20]}  Rh5 {[%clk 0:01:14]} 42. Ng3 {[%clk 0:00:19]}  Rh3 {[%clk 0:01:11]} 43. Rh1 {[%clk 0:00:19]}  Rxh1 {[%clk 0:01:10]} 44. Nxh1 {[%clk 0:00:19]}  Bd6 {[%clk 0:01:10]} 45. Nf2 {[%clk 0:00:20]}  Ke7 {[%clk 0:01:09]} 46. Kd3 {[%clk 0:00:19]}  Kd7 {[%clk 0:01:09]} 47. e4 {[%clk 0:00:19]}  Bg3 {[%clk 0:01:10]} 48. e5 {[%clk 0:00:14]}  Ne4 {[%clk 0:01:00]} 49. Ke2 {[%clk 0:00:12]}  Bxf2 {[%clk 0:00:56]} 50. Bxf2 {[%clk 0:00:13]}  Kc6 {[%clk 0:00:54]} 51. Be1 {[%clk 0:00:13]}  Kb5 {[%clk 0:00:53]} 52. Kd3 {[%clk 0:00:13]}  a4 {[%clk 0:00:53]} 53. Bd2 {[%clk 0:00:13]}  Ng3 {[%clk 0:00:50]} 54. Be1 {[%clk 0:00:13]}  Ne4 {[%clk 0:00:48]} 55. a3 {[%clk 0:00:08]}  b3 {[%clk 0:00:46]} 56. Bb4 {[%clk 0:00:07]}  Ng3 {[%clk 0:00:38]} 57. Be1 {[%clk 0:00:07]}  Nh5 {[%clk 0:00:37]} 58. Bd2 {[%clk 0:00:07]}  Ng7 {[%clk 0:00:33]} 59. Be1 {[%clk 0:00:06]}  Ne8 {[%clk 0:00:33]} 60. Bd2 {[%clk 0:00:05]}  Nc7 {[%clk 0:00:33]} 61. Be1 {[%clk 0:00:04]}  Na8 {[%clk 0:00:34]} 62. Bd2 {[%clk 0:00:03]}  Nb6 {[%clk 0:00:34]} 63. Bc3 {[%clk 0:00:03]}  Nc4 {[%clk 0:00:35]} 64. Ke2 {[%clk 0:00:03]}  Kc6 {[%clk 0:00:33]} 65. Kd3 {[%clk 0:00:04]}  Kd7 {[%clk 0:00:33]} 66. Ke2 {[%clk 0:00:03]}  Ke7 {[%clk 0:00:34]} 67. Kf3 {[%clk 0:00:03]}  Kf7 {[%clk 0:00:34]} 68. Kf4 {[%clk 0:00:03]}  Kg6 {[%clk 0:00:35]} 69. Kg4 {[%clk 0:00:04]}  Ne3+ {[%clk 0:00:35]} 70. Kf3 {[%clk 0:00:04]}  Nd1 {[%clk 0:00:36]} 71. Ke2 {[%clk 0:00:02]}  Nxc3+ {[%clk 0:00:35]} 72. bxc3 {[%clk 0:00:02]}  b2 {[%clk 0:00:36]} 0-1


[Site "https://www.chess.com"]

[Event "Titled Tuesday Blitz May 4 2021"]
[White "Stromboli, Ettore"]
[Black "Josse, Mark"]
[WhiteFideId "813761"]
[BlackFideId "414476"]
[WhiteElo "2414"]
[BlackElo "2287"]
[Result "0-1"]
[Round "06"]
[TimeControl "180+1"]
[Date "2021.05.04"]
[WhiteClock "0:00:02"]
[BlackClock "0:00:13"]

1. e4 {[%clk 0:01:25]}  e5 {[%clk 0:02:54]} 2. Nf3 {[%clk 0:01:22]}  Nc6 {[%clk 0:02:54]} 3. Bb5 {[%clk 0:01:22]}  Nge7 {[%clk 0:02:54]} 4. O-O {[%clk 0:01:21]}  a6 {[%clk 0:02:54]} 5. Ba4 {[%clk 0:01:21]}  g6 {[%clk 0:02:54]} 6. c3 {[%clk 0:01:20]}  Bg7 {[%clk 0:02:52]} 7. d4 {[%clk 0:01:20]}  b5 {[%clk 0:02:53]} 8. Bb3 {[%clk 0:01:19]}  exd4 {[%clk 0:02:52]} 9. cxd4 {[%clk 0:01:18]}  d6 {[%clk 0:02:53]} 10. Nc3 {[%clk 0:01:18]}  O-O {[%clk 0:02:52]} 11. h3 {[%clk 0:01:18]}  Bb7 {[%clk 0:02:52]} 12. Re1 {[%clk 0:01:18]}  Na5 {[%clk 0:02:49]} 13. Bc2 {[%clk 0:01:17]}  Nc4 {[%clk 0:02:46]} 14. b3 {[%clk 0:01:05]}  Nb6 {[%clk 0:02:46]} 15. Bb2 {[%clk 0:01:05]}  c5 {[%clk 0:02:44]} 16. Qd2 {[%clk 0:00:38]}  Qc7 {[%clk 0:02:09]} 17. Rad1 {[%clk 0:00:37]}  Rad8 {[%clk 0:02:03]} 18. Bb1 {[%clk 0:00:31]}  b4 {[%clk 0:01:52]} 19. Ne2 {[%clk 0:00:27]}  a5 {[%clk 0:01:52]} 20. Rc1 {[%clk 0:00:24]}  c4 {[%clk 0:01:52]} 21. bxc4 {[%clk 0:00:23]}  Nxc4 {[%clk 0:01:52]} 22. Qc2 {[%clk 0:00:20]}  Ba6 {[%clk 0:01:51]} 23. Nd2 {[%clk 0:00:19]}  Rc8 {[%clk 0:01:49]} 24. Qa4 {[%clk 0:00:13]}  d5 {[%clk 0:01:46]} 25. exd5 {[%clk 0:00:13]}  Nxd5 {[%clk 0:01:44]} 26. Nxc4 {[%clk 0:00:13]}  Bxc4 {[%clk 0:01:43]} 27. Bd3 {[%clk 0:00:14]}  Nb6 {[%clk 0:01:37]} 28. Qxa5 {[%clk 0:00:13]}  Ra8 {[%clk 0:01:37]} 29. Qxb4 {[%clk 0:00:12]}  Ra4 {[%clk 0:01:28]} 30. Qd2 {[%clk 0:00:12]}  Rxa2 {[%clk 0:01:25]} 31. Bxc4 {[%clk 0:00:11]}  Nxc4 {[%clk 0:01:25]} 32. Qc3 {[%clk 0:00:11]}  Rc8 {[%clk 0:01:21]} 33. Ba1 {[%clk 0:00:11]}  Qb7 {[%clk 0:01:02]} 34. Rc2 {[%clk 0:00:10]}  Rxc2 {[%clk 0:00:49]} 35. Qxc2 {[%clk 0:00:11]}  Ne3 {[%clk 0:00:42]} 36. Qxc8+ {[%clk 0:00:08]}  Qxc8 {[%clk 0:00:39]} 37. fxe3 {[%clk 0:00:09]}  Qc2 {[%clk 0:00:34]} 38. Kf2 {[%clk 0:00:09]}  f5 {[%clk 0:00:33]} 39. Rc1 {[%clk 0:00:08]}  Qe4 {[%clk 0:00:30]} 40. Rc8+ {[%clk 0:00:07]}  Kf7 {[%clk 0:00:29]} 41. Rc7+ {[%clk 0:00:08]}  Kf8 {[%clk 0:00:29]} 42. Nf4 {[%clk 0:00:07]}  Bh6 {[%clk 0:00:24]} 43. g3 {[%clk 0:00:07]}  Bxf4 {[%clk 0:00:23]} 44. gxf4 {[%clk 0:00:07]}  h5 {[%clk 0:00:23]} 45. Bc3 {[%clk 0:00:06]}  Qc2+ {[%clk 0:00:21]} 46. Kf3 {[%clk 0:00:06]}  Qd1+ {[%clk 0:00:21]} 47. Kf2 {[%clk 0:00:06]}  Qc2+ {[%clk 0:00:21]} 48. Kf3 {[%clk 0:00:06]}  Qe4+ {[%clk 0:00:22]} 49. Kf2 {[%clk 0:00:06]}  Qh1 {[%clk 0:00:21]} 50. Rc8+ {[%clk 0:00:05]}  Kf7 {[%clk 0:00:21]} 51. Rc7+ {[%clk 0:00:05]}  Ke6 {[%clk 0:00:18]} 52. Rc5 {[%clk 0:00:05]}  Qxh3 {[%clk 0:00:17]} 53. Re5+ {[%clk 0:00:05]}  Kd6 {[%clk 0:00:16]} 54. Bb4+ {[%clk 0:00:06]}  Kc6 {[%clk 0:00:16]} 55. d5+ {[%clk 0:00:06]}  Kb5 {[%clk 0:00:16]} 56. d6+ {[%clk 0:00:07]}  Kxb4 {[%clk 0:00:16]} 57. d7 {[%clk 0:00:08]}  Qh2+ {[%clk 0:00:16]} 58. Kf3 {[%clk 0:00:08]}  Qd2 {[%clk 0:00:16]} 59. Re7 {[%clk 0:00:06]}  Qd5+ {[%clk 0:00:16]} 60. Kf2 {[%clk 0:00:06]}  h4 {[%clk 0:00:15]} 61. Rh7 {[%clk 0:00:05]}  h3 {[%clk 0:00:16]} 62. Rxh3 {[%clk 0:00:02]}  Qd2+ {[%clk 0:00:16]} 63. Kf3 {[%clk 0:00:02]}  Qxd7 {[%clk 0:00:17]} 64. Rh6 {[%clk 0:00:03]}  Qd5+ {[%clk 0:00:17]} 65. Kf2 {[%clk 0:00:03]}  Qe6 {[%clk 0:00:17]} 66. Rh8 {[%clk 0:00:03]}  Kc3 {[%clk 0:00:17]} 67. Rd8 {[%clk 0:00:03]}  Qe4 {[%clk 0:00:15]} 68. Rc8+ {[%clk 0:00:02]}  Kd2 {[%clk 0:00:14]} 69. Rd8+ {[%clk 0:00:02]}  Kc1 {[%clk 0:00:13]} 70. Rc8+ {[%clk 0:00:02]}  Kb2 {[%clk 0:00:13]} 71. Rd8 {[%clk 0:00:02]}  Kc3 {[%clk 0:00:13]} 0-1


[Site "https://www.chess.com"]

[Event "Titled Tuesday Blitz May 4 2021"]
[White "Suvorov, Luca"]
[Black "Hansen, Soren Bech"]
[WhiteFideId "12977071"]
[BlackFideId "1400681"]
[WhiteElo "2127"]
[BlackElo "2230"]
[Result "1-0"]
[Round "06"]
[TimeControl "180+1"]
[Date "2021.05.04"]
[WhiteClock "0:01:40"]
[BlackClock "0:01:17"]

1. d4 {[%clk 0:03:00]}  f5 {[%clk 0:02:57]} 2. c4 {[%clk 0:03:01]}  Nf6 {[%clk 0:02:57]} 3. Nc3 {[%clk 0:02:57]}  d6 {[%clk 0:02:57]} 4. Nf3 {[%clk 0:02:56]}  g6 {[%clk 0:02:57]} 5. g3 {[%clk 0:02:56]}  Bg7 {[%clk 0:02:57]} 6. Bg2 {[%clk 0:02:57]}  O-O {[%clk 0:02:58]} 7. O-O {[%clk 0:02:57]}  Qe8 {[%clk 0:02:58]} 8. Re1 {[%clk 0:02:56]}  Qf7 {[%clk 0:02:58]} 9. e4 {[%clk 0:02:46]}  fxe4 {[%clk 0:02:56]} 10. Nxe4 {[%clk 0:02:46]}  Nxe4 {[%clk 0:02:54]} 11. Rxe4 {[%clk 0:02:47]}  Bf5 {[%clk 0:02:51]} 12. Rh4 {[%clk 0:02:45]}  Qxc4 {[%clk 0:02:38]} 13. Bh6 {[%clk 0:02:09]}  Nc6 {[%clk 0:02:32]} 14. Bxg7 {[%clk 0:02:04]}  Kxg7 {[%clk 0:02:31]} 15. d5 {[%clk 0:02:04]}  Qc2 {[%clk 0:01:46]} 16. Qxc2 {[%clk 0:01:57]}  Bxc2 {[%clk 0:01:46]} 17. dxc6 {[%clk 0:01:57]}  bxc6 {[%clk 0:01:45]} 18. Rc4 {[%clk 0:01:57]}  Bf5 {[%clk 0:01:37]} 19. Rxc6 {[%clk 0:01:55]}  Be4 {[%clk 0:01:34]} 20. Ng5 {[%clk 0:01:50]}  Bxc6 {[%clk 0:01:31]} 21. Bxc6 {[%clk 0:01:51]}  Rab8 {[%clk 0:01:25]} 22. Ne6+ {[%clk 0:01:50]}  Kf6 {[%clk 0:01:26]} 23. Nxf8 {[%clk 0:01:51]}  Rxb2 {[%clk 0:01:21]} 24. Nxh7+ {[%clk 0:01:46]}  Kf5 {[%clk 0:01:18]} 25. Re1 {[%clk 0:01:41]}  e5 {[%clk 0:01:17]} 26. Bd7# {[%clk 0:01:40]} 1-0


[Site "https://www.chess.com"]

[Event "Titled Tuesday Blitz May 4 2021"]
[White "Svane, Rasmus"]
[Black "Moultino06"]
[WhiteFideId "4657101"]
[WhiteElo "2669"]
[BlackElo "2690"]
[Result "0-1"]
[Round "06"]
[TimeControl "180+1"]
[Date "2021.05.04"]
[WhiteClock "0:01:04"]
[BlackClock "0:00:12"]

1. Nf3 {[%clk 0:03:00]}  Nf6 {[%clk 0:02:58]} 2. g3 {[%clk 0:03:01]}  g6 {[%clk 0:02:59]} 3. Bg2 {[%clk 0:03:01]}  Bg7 {[%clk 0:02:59]} 4. O-O {[%clk 0:03:02]}  O-O {[%clk 0:03:00]} 5. d4 {[%clk 0:03:02]}  d5 {[%clk 0:03:00]} 6. c4 {[%clk 0:03:03]}  c6 {[%clk 0:03:00]} 7. Qb3 {[%clk 0:03:03]}  a5 {[%clk 0:02:55]} 8. Rd1 {[%clk 0:03:02]}  a4 {[%clk 0:02:52]} 9. Qb4 {[%clk 0:03:02]}  Qd6 {[%clk 0:02:28]} 10. Qxd6 {[%clk 0:02:48]}  exd6 {[%clk 0:02:29]} 11. Bf4 {[%clk 0:02:47]}  dxc4 {[%clk 0:02:26]} 12. Bxd6 {[%clk 0:02:45]}  Rd8 {[%clk 0:02:25]} 13. Bc7 {[%clk 0:02:39]}  Re8 {[%clk 0:02:18]} 14. e3 {[%clk 0:02:30]}  Nd5 {[%clk 0:02:03]} 15. Be5 {[%clk 0:02:21]}  f6 {[%clk 0:01:30]} 16. Bxb8 {[%clk 0:02:18]}  Rxb8 {[%clk 0:01:30]} 17. Nfd2 {[%clk 0:02:18]}  b5 {[%clk 0:01:09]} 18. b3 {[%clk 0:02:18]}  Bg4 {[%clk 0:00:43]} 19. Rc1 {[%clk 0:02:16]}  f5 {[%clk 0:00:31]} 20. h3 {[%clk 0:01:37]}  Nxe3 {[%clk 0:00:20]} 21. fxe3 {[%clk 0:01:23]}  Rxe3 {[%clk 0:00:21]} 22. hxg4 {[%clk 0:01:24]}  Bxd4 {[%clk 0:00:20]} 23. bxc4 {[%clk 0:01:19]}  Rc3+ {[%clk 0:00:19]} 24. Kh2 {[%clk 0:01:16]}  Rxc1 {[%clk 0:00:20]} 25. cxb5 {[%clk 0:01:15]}  cxb5 {[%clk 0:00:18]} 26. Nc3 {[%clk 0:01:07]}  Rxa1 {[%clk 0:00:14]} 27. Nd5 {[%clk 0:01:07]}  Rxa2 {[%clk 0:00:14]} 28. Nf3 {[%clk 0:01:07]}  Rxg2+ {[%clk 0:00:13]} 29. Kxg2 {[%clk 0:01:07]}  Bb2 {[%clk 0:00:14]} 30. g5 {[%clk 0:01:06]}  a3 {[%clk 0:00:13]} 31. Nb4 {[%clk 0:01:06]}  Bc3 {[%clk 0:00:12]} 32. Na2 {[%clk 0:01:06]}  b4 {[%clk 0:00:12]} 33. Nc1 {[%clk 0:01:03]}  b3 {[%clk 0:00:12]} 34. Ne5 {[%clk 0:01:04]} 0-1


[Site "https://www.chess.com"]

[Event "Titled Tuesday Blitz May 4 2021"]
[White "Sviridova, Vlada"]
[Black "WelshTiger"]
[WhiteFideId "24109606"]
[WhiteElo "2101"]
[BlackElo "2463"]
[Result "1-0"]
[Round "06"]
[TimeControl "180+1"]
[Date "2021.05.04"]
[WhiteClock "0:00:26"]
[BlackClock "0:00:09"]

1. d4 {[%clk 0:03:00]}  Nf6 {[%clk 0:02:58]} 2. c4 {[%clk 0:03:01]}  g6 {[%clk 0:02:58]} 3. Nc3 {[%clk 0:03:00]}  d5 {[%clk 0:02:58]} 4. cxd5 {[%clk 0:03:00]}  Nxd5 {[%clk 0:02:59]} 5. e4 {[%clk 0:03:00]}  Nxc3 {[%clk 0:02:59]} 6. bxc3 {[%clk 0:03:00]}  Bg7 {[%clk 0:02:59]} 7. Bc4 {[%clk 0:03:00]}  O-O {[%clk 0:02:56]} 8. Ne2 {[%clk 0:02:59]}  c5 {[%clk 0:02:56]} 9. O-O {[%clk 0:02:59]}  Qc7 {[%clk 0:02:56]} 10. Bd3 {[%clk 0:02:51]}  b6 {[%clk 0:02:46]} 11. Bf4 {[%clk 0:02:48]}  e5 {[%clk 0:02:45]} 12. Bg3 {[%clk 0:02:47]}  Bb7 {[%clk 0:02:40]} 13. d5 {[%clk 0:02:41]}  c4 {[%clk 0:02:37]} 14. Bc2 {[%clk 0:02:40]}  Nd7 {[%clk 0:02:38]} 15. Qd2 {[%clk 0:02:37]}  Nc5 {[%clk 0:02:36]} 16. Rfb1 {[%clk 0:02:28]}  Ba6 {[%clk 0:02:36]} 17. a4 {[%clk 0:02:27]}  Nd3 {[%clk 0:02:27]} 18. h4 {[%clk 0:01:59]}  f5 {[%clk 0:02:26]} 19. exf5 {[%clk 0:01:50]}  gxf5 {[%clk 0:02:24]} 20. Nd4 {[%clk 0:01:47]}  f4 {[%clk 0:02:14]} 21. Ne6 {[%clk 0:01:46]}  Qd6 {[%clk 0:02:09]} 22. Bxd3 {[%clk 0:01:29]}  cxd3 {[%clk 0:02:03]} 23. Nxf8 {[%clk 0:01:28]}  Rxf8 {[%clk 0:01:39]} 24. Bh2 {[%clk 0:01:27]}  Qxd5 {[%clk 0:01:39]} 25. Re1 {[%clk 0:01:18]}  e4 {[%clk 0:01:14]} 26. Bxf4 {[%clk 0:01:16]}  Bxc3 {[%clk 0:01:14]} 27. Qxc3 {[%clk 0:01:07]}  Rxf4 {[%clk 0:01:15]} 28. Rad1 {[%clk 0:01:01]}  Bb7 {[%clk 0:01:15]} 29. Re3 {[%clk 0:00:58]}  Rg4 {[%clk 0:00:58]} 30. g3 {[%clk 0:00:53]}  Qh5 {[%clk 0:00:56]} 31. Qc4+ {[%clk 0:00:49]}  Bd5 {[%clk 0:00:49]} 32. Qc8+ {[%clk 0:00:48]}  Kg7 {[%clk 0:00:49]} 33. Qd7+ {[%clk 0:00:47]}  Bf7 {[%clk 0:00:47]} 34. Qd4+ {[%clk 0:00:46]}  Kg8 {[%clk 0:00:39]} 35. Rc1 {[%clk 0:00:45]}  Bd5 {[%clk 0:00:20]} 36. Rc8+ {[%clk 0:00:44]}  Kf7 {[%clk 0:00:20]} 37. Rc7+ {[%clk 0:00:43]}  Ke6 {[%clk 0:00:20]} 38. Rxa7 {[%clk 0:00:33]}  Rg6 {[%clk 0:00:17]} 39. Qxb6+ {[%clk 0:00:33]}  Ke5 {[%clk 0:00:18]} 40. Qb2+ {[%clk 0:00:33]}  Ke6 {[%clk 0:00:18]} 41. Ra6+ {[%clk 0:00:33]}  Kf5 {[%clk 0:00:18]} 42. Rxg6 {[%clk 0:00:32]}  hxg6 {[%clk 0:00:19]} 43. Qb5 {[%clk 0:00:30]}  Kg4 {[%clk 0:00:18]} 44. Qb1 {[%clk 0:00:28]}  Kf5 {[%clk 0:00:14]} 45. Qc1 {[%clk 0:00:27]}  Ke5 {[%clk 0:00:10]} 46. Qc3+ {[%clk 0:00:26]}  Ke6 {[%clk 0:00:10]} 47. Qd2 {[%clk 0:00:26]}  Ke5 {[%clk 0:00:10]} 48. Qxd3 {[%clk 0:00:26]}  Qf5 {[%clk 0:00:08]} 49. Qc3+ {[%clk 0:00:25]}  Ke6 {[%clk 0:00:08]} 50. Qc8+ {[%clk 0:00:26]}  Ke5 {[%clk 0:00:08]} 51. Qxf5+ {[%clk 0:00:25]}  gxf5 {[%clk 0:00:09]} 52. h5 {[%clk 0:00:25]}  Kf6 {[%clk 0:00:07]} 53. a5 {[%clk 0:00:25]}  Kg5 {[%clk 0:00:08]} 54. a6 {[%clk 0:00:25]}  Kxh5 {[%clk 0:00:08]} 55. a7 {[%clk 0:00:25]}  Ba8 {[%clk 0:00:08]} 56. Ra3 {[%clk 0:00:25]}  Kg4 {[%clk 0:00:09]} 57. Rc3 {[%clk 0:00:25]}  f4 {[%clk 0:00:08]} 58. gxf4 {[%clk 0:00:26]}  Kxf4 {[%clk 0:00:09]} 59. Kf1 {[%clk 0:00:26]}  Ke5 {[%clk 0:00:08]} 60. Ke2 {[%clk 0:00:26]}  Kd4 {[%clk 0:00:08]} 61. Rc8 {[%clk 0:00:26]}  Bd5 {[%clk 0:00:08]} 62. a8=Q {[%clk 0:00:26]}  Bxa8 {[%clk 0:00:09]} 63. Rxa8 {[%clk 0:00:26]} 1-0


[Site "https://www.chess.com"]